[Event "British Rapidplay Championship 2023"]
[Site "Mercure Bradford, Bankfield Hotel"]
[Date "2023.04.16"]
[Round "10.8"]
[White "Cook, Phil"]
[Black "Bramson, Mike"]
[Result "1-0"]
[TimeControl "15 minutes plus 10 seconds per move"]
[WhiteElo "2126"]
[BlackElo "1864"]

1. c4 {[%clk 00:15:16]} {[%emt 00:00:03]} e5 {[%clk 00:15:15]} {[%emt
00:00:06]} 2. Nc3 {[%clk 00:15:23]} {[%emt 00:00:03]} Nf6 {[%clk 00:15:21]}
{[%emt 00:00:03]} 3. Nf3 {[%clk 00:15:30]} {[%emt 00:00:04]} Nc6 {[%clk
00:15:27]} {[%emt 00:00:03]} 4. e3 {[%clk 00:15:33]} {[%emt 00:00:07]} d5
{[%clk 00:15:23]} {[%emt 00:00:14]} 5. cxd5 {[%clk 00:15:39]} {[%emt 00:00:05]}
Nxd5 {[%clk 00:15:30]} {[%emt 00:00:03]} 6. Bb5 {[%clk 00:15:45]} {[%emt
00:00:04]} Nxc3 {[%clk 00:15:19]} {[%emt 00:00:21]} 7. bxc3 {[%clk 00:15:48]}
{[%emt 00:00:07]} Bd6 {[%clk 00:15:20]} {[%emt 00:00:09]} 8. d4 {[%clk
00:15:42]} {[%emt 00:00:17]} exd4 {[%clk 00:14:55]} {[%emt 00:00:35]} 9. cxd4
{[%clk 00:15:49]} {[%emt 00:00:02]} O-O {[%clk 00:14:55]} {[%emt 00:00:10]} 10.
O-O {[%clk 00:15:35]} {[%emt 00:00:24]} Bg4 {[%clk 00:14:46]} {[%emt 00:00:19]}
11. h3 {[%clk 00:15:41]} {[%emt 00:00:05]} Bh5 {[%clk 00:14:52]} {[%emt
00:00:03]} 12. Bb2 {[%clk 00:15:44]} {[%emt 00:00:07]} Qe7 {[%clk 00:13:12]}
{[%emt 00:01:51]} 13. Be2 {[%clk 00:13:59]} {[%emt 00:01:54]} Rad8 {[%clk
00:13:05]} {[%emt 00:00:17]} 14. Qb3 {[%clk 00:13:04]} {[%emt 00:01:05]} b6
{[%clk 00:11:12]} {[%emt 00:02:04]} 15. Rac1 {[%clk 00:10:57]} {[%emt
00:02:17]} Nb4 {[%clk 00:10:56]} {[%emt 00:00:26]} 16. Rfe1 {[%clk 00:09:10]}
{[%emt 00:01:57]} Nd5 {[%clk 00:10:50]} {[%emt 00:00:15]} 17. g3 {[%clk
00:06:20]} {[%emt 00:03:01]} Nf6 {[%clk 00:10:26]} {[%emt 00:00:34]} 18. Kg2
{[%clk 00:05:48]} {[%emt 00:00:42]} Ne4 {[%clk 00:10:26]} {[%emt 00:00:10]} 19.
Rcd1 {[%clk 00:03:32]} {[%emt 00:02:26]} Kh8 {[%clk 00:08:50]} {[%emt
00:01:45]} 20. Nd2 {[%clk 00:01:33]} {[%emt 00:02:09]} Bxe2 {[%clk 00:07:04]}
{[%emt 00:01:56]} 21. Rxe2 {[%clk 00:01:41]} {[%emt 00:00:02]} Qg5 {[%clk
00:06:58]} {[%emt 00:00:16]} 22. Nxe4 {[%clk 00:01:38]} {[%emt 00:00:14]} Qg6
{[%clk 00:06:49]} {[%emt 00:00:19]} 23. Nxd6 {[%clk 00:01:43]} {[%emt
00:00:05]} cxd6 {[%clk 00:06:50]} {[%emt 00:00:09]} 24. Rc1 {[%clk 00:01:29]}
{[%emt 00:00:25]} d5 {[%clk 00:06:49]} {[%emt 00:00:11]} 25. Rc7 {[%clk
00:01:26]} {[%emt 00:00:13]} h5 {[%clk 00:06:51]} {[%emt 00:00:07]} 26. Qc2
{[%clk 00:01:30]} {[%emt 00:00:06]} f5 {[%clk 00:06:57]} {[%emt 00:00:04]} 27.
Ba3 {[%clk 00:01:13]} {[%emt 00:00:27]} Rfe8 {[%clk 00:07:01]} {[%emt
00:00:06]} 28. Qc6 {[%clk 00:01:10]} {[%emt 00:00:12]} Re6 {[%clk 00:07:05]}
{[%emt 00:00:06]} 29. Qc2 {[%clk 00:00:53]} {[%emt 00:00:27]} h4 {[%clk
00:07:08]} {[%emt 00:00:07]} 30. Be7 {[%clk 00:00:55]} {[%emt 00:00:08]} Re8
{[%clk 00:06:32]} {[%emt 00:00:45]} 31. Bxh4 {[%clk 00:00:58]} {[%emt
00:00:07]} Qh5 {[%clk 00:06:39]} {[%emt 00:00:03]} 32. f4 {[%clk 00:00:41]}
{[%emt 00:00:28]} Rxe3 {[%clk 00:06:42]} {[%emt 00:00:07]} 33. Rxe3 {[%clk
00:00:45]} {[%emt 00:00:06]} Rxe3 {[%clk 00:06:50]} {[%emt 00:00:02]} 34. Rc8+
{[%clk 00:00:31]} {[%emt 00:00:25]} Kh7 {[%clk 00:06:58]} {[%emt 00:00:01]} 35.
g4 {[%clk 00:00:26]} {[%emt 00:00:16]} Qxh4 {[%clk 00:06:55]} {[%emt 00:00:12]}
36. Qxf5+ {[%clk 00:00:34]} {[%emt 00:00:02]} g6 {[%clk 00:06:57]} {[%emt
00:00:08]} 37. Qf7+ {[%clk 00:00:41]} {[%emt 00:00:03]} Kh6 {[%clk 00:07:00]}
{[%emt 00:00:06]} 38. Rh8# {[%clk 00:00:21]} {[%emt 00:00:02]} 1-0

[Event "British Rapidplay Championship 2023"]
[Site "Mercure Bradford, Bankfield Hotel"]
[Date "2023.04.16"]
[Round "10.9"]
[White "Lau, Luke"]
[Black "Senior, Gary"]
[Result "1-0"]
[TimeControl "15 minutes plus 10 seconds per move"]
[WhiteElo "1917"]
[BlackElo "1911"]

1. e4 {[%clk 00:15:18]} {[%emt 00:00:01]} c5 {[%clk 00:15:19]} {[%emt
00:00:02]} 2. c3 {[%clk 00:15:27]} {[%emt 00:00:01]} d5 {[%clk 00:15:26]}
{[%emt 00:00:03]} 3. exd5 {[%clk 00:15:36]} {[%emt 00:00:01]} Qxd5 {[%clk
00:15:34]} {[%emt 00:00:02]} 4. d4 {[%clk 00:15:45]} Nf6 {[%clk 00:15:38]}
{[%emt 00:00:05]} 5. Nf3 {[%clk 00:15:53]} {[%emt 00:00:02]} Bg4 {[%clk
00:15:45]} {[%emt 00:00:03]} 6. dxc5 {[%clk 00:15:57]} {[%emt 00:00:07]} Qxc5
{[%clk 00:15:46]} {[%emt 00:00:09]} 7. Be3 {[%clk 00:15:47]} {[%emt 00:00:20]}
Qc7 {[%clk 00:15:50]} {[%emt 00:00:06]} 8. Na3 {[%clk 00:15:04]} {[%emt
00:00:54]} a6 {[%clk 00:15:56]} {[%emt 00:00:03]} 9. Be2 {[%clk 00:14:08]}
{[%emt 00:01:05]} Nbd7 {[%clk 00:15:12]} {[%emt 00:00:54]} 10. h3 {[%clk
00:13:28]} {[%emt 00:00:51]} Bh5 {[%clk 00:13:58]} {[%emt 00:01:23]} 11. O-O
{[%clk 00:13:02]} {[%emt 00:00:36]} e5 {[%clk 00:13:21]} {[%emt 00:00:47]} 12.
Nc2 {[%clk 00:12:31]} {[%emt 00:00:42]} Be7 {[%clk 00:13:02]} {[%emt 00:00:28]}
13. Nb4 {[%clk 00:12:07]} {[%emt 00:00:35]} Rd8 {[%clk 00:11:06]} {[%emt
00:02:05]} 14. Nd5 {[%clk 00:11:30]} {[%emt 00:00:47]} Nxd5 {[%clk 00:09:14]}
{[%emt 00:02:03]} 15. Qxd5 {[%clk 00:11:39]} {[%emt 00:00:02]} Nc5 {[%clk
00:09:01]} {[%emt 00:00:22]} 16. Qc4 {[%clk 00:08:22]} {[%emt 00:03:26]} b5
{[%clk 00:08:51]} {[%emt 00:00:21]} 17. Qb4 {[%clk 00:08:29]} {[%emt 00:00:03]}
O-O {[%clk 00:08:37]} {[%emt 00:00:23]} 18. Rad1 {[%clk 00:06:08]} {[%emt
00:02:32]} Nd3 {[%clk 00:04:30]} {[%emt 00:04:17]} 19. Qb3 {[%clk 00:06:03]}
{[%emt 00:00:15]} e4 {[%clk 00:04:33]} {[%emt 00:00:07]} 20. Nd4 {[%clk
00:06:07]} {[%emt 00:00:05]} Bxe2 {[%clk 00:04:41]} {[%emt 00:00:03]} 21. Nxe2
{[%clk 00:06:14]} {[%emt 00:00:02]} Kh8 {[%clk 00:04:23]} {[%emt 00:00:28]} 22.
Nc1 {[%clk 00:04:48]} {[%emt 00:01:37]} Bc5 {[%clk 00:03:23]} {[%emt 00:01:09]}
23. Bxc5 {[%clk 00:03:59]} {[%emt 00:01:01]} Nxc5 {[%clk 00:03:23]} {[%emt
00:00:10]} 24. Qc2 {[%clk 00:03:53]} {[%emt 00:00:16]} f5 {[%clk 00:02:56]}
{[%emt 00:00:36]} 25. Rxd8 {[%clk 00:03:43]} {[%emt 00:00:21]} Rxd8 {[%clk
00:03:01]} {[%emt 00:00:05]} 26. Rd1 {[%clk 00:03:45]} {[%emt 00:00:07]} Rd6
{[%clk 00:02:17]} {[%emt 00:00:54]} 27. Ne2 {[%clk 00:03:14]} {[%emt 00:00:41]}
Nd3 {[%clk 00:01:58]} {[%emt 00:00:29]} 28. Ng3 {[%clk 00:02:53]} {[%emt
00:00:30]} Qc5 {[%clk 00:01:18]} {[%emt 00:00:51]} 29. Nf1 {[%clk 00:02:07]}
{[%emt 00:00:56]} Nxf2 {[%clk 00:01:01]} {[%emt 00:00:28]} 30. Rxd6 {[%clk
00:02:15]} {[%emt 00:00:02]} Nd3+ {[%clk 00:01:07]} {[%emt 00:00:03]} 31. Rd4
{[%clk 00:02:23]} {[%emt 00:00:02]} 1-0

[Event "British Rapidplay Championship 2023"]
[Site "Mercure Bradford, Bankfield Hotel"]
[Date "2023.04.16"]
[Round "10.10"]
[White "Hryshchenko, Kamila"]
[Black "Vijayakumar, Rishi"]
[Result "1/2-1/2"]
[TimeControl "15 minutes plus 10 seconds per move"]
[WhiteElo "2019"]
[BlackElo "1770"]

1. e4 {[%clk 00:15:16]} {[%emt 00:00:04]} c6 {[%clk 00:15:20]} 2. d4 {[%clk
00:15:23]} {[%emt 00:00:02]} d5 {[%clk 00:15:29]} 3. e5 {[%clk 00:15:27]}
{[%emt 00:00:06]} Bf5 {[%clk 00:15:38]} {[%emt 00:00:01]} 4. Be3 {[%clk
00:15:34]} {[%emt 00:00:03]} Qb6 {[%clk 00:15:46]} {[%emt 00:00:02]} 5. Qc1
{[%clk 00:15:42]} {[%emt 00:00:02]} e6 {[%clk 00:15:53]} {[%emt 00:00:04]} 6.
Nd2 {[%clk 00:15:47]} {[%emt 00:00:04]} Ne7 {[%clk 00:16:01]} {[%emt 00:00:02]}
7. c4 {[%clk 00:15:51]} {[%emt 00:00:06]} h6 {[%clk 00:16:10]} {[%emt
00:00:01]} 8. Ngf3 {[%clk 00:15:51]} {[%emt 00:00:10]} Bh7 {[%clk 00:16:19]}
{[%emt 00:00:01]} 9. c5 {[%clk 00:14:26]} {[%emt 00:01:36]} Qc7 {[%clk
00:16:04]} {[%emt 00:00:24]} 10. h4 {[%clk 00:14:30]} {[%emt 00:00:06]} Nf5
{[%clk 00:16:04]} {[%emt 00:00:10]} 11. Bf4 {[%clk 00:14:35]} {[%emt 00:00:05]}
a5 {[%clk 00:15:43]} {[%emt 00:00:32]} 12. Be2 {[%clk 00:13:29]} {[%emt
00:01:15]} Nd7 {[%clk 00:15:19]} {[%emt 00:00:34]} 13. Qc3 {[%clk 00:12:27]}
{[%emt 00:01:12]} b5 {[%clk 00:11:32]} {[%emt 00:03:57]} 14. Bd3 {[%clk
00:11:45]} {[%emt 00:00:52]} O-O-O {[%clk 00:07:46]} {[%emt 00:03:57]} 15. Nb3
{[%clk 00:10:21]} {[%emt 00:01:33]} b4 {[%clk 00:05:45]} {[%emt 00:02:12]} 16.
Qc2 {[%clk 00:10:23]} {[%emt 00:00:07]} Be7 {[%clk 00:04:58]} {[%emt 00:00:57]}
17. Bd2 {[%clk 00:02:06]} {[%emt 00:08:26]} f6 {[%clk 00:02:48]} {[%emt
00:02:21]} 18. g4 {[%clk 00:02:02]} {[%emt 00:00:14]} fxe5 {[%clk 00:02:34]}
{[%emt 00:00:24]} 19. gxf5 {[%clk 00:01:47]} {[%emt 00:00:26]} e4 {[%clk
00:02:16]} {[%emt 00:00:28]} 20. Ba6+ {[%clk 00:01:55]} {[%emt 00:00:02]} Kb8
{[%clk 00:02:25]} 21. Nh2 {[%clk 00:01:58]} {[%emt 00:00:05]} Bxf5 {[%clk
00:02:28]} {[%emt 00:00:08]} 22. Be3 {[%clk 00:01:49]} {[%emt 00:00:19]} a4
{[%clk 00:01:55]} {[%emt 00:00:45]} 23. Nd2 {[%clk 00:01:50]} {[%emt 00:00:08]}
Qa5 {[%clk 00:02:04]} {[%emt 00:00:01]} 24. Be2 {[%clk 00:01:57]} {[%emt
00:00:03]} e5 {[%clk 00:01:40]} {[%emt 00:00:34]} 25. Rc1 {[%clk 00:02:04]}
{[%emt 00:00:02]} exd4 {[%clk 00:01:17]} {[%emt 00:00:33]} 26. Bxd4 {[%clk
00:02:06]} {[%emt 00:00:08]} Rhf8 {[%clk 00:01:10]} {[%emt 00:00:17]} 27. Ndf1
{[%clk 00:00:34]} {[%emt 00:01:42]} Bxh4 {[%clk 00:00:52]} {[%emt 00:00:28]} 28.
Ne3 {[%clk 00:00:36]} {[%emt 00:00:08]} Be6 {[%clk 00:00:46]} {[%emt 00:00:16]}
29. Nhg4 {[%clk 00:00:38]} {[%emt 00:00:08]} Be7 {[%clk 00:00:39]} {[%emt
00:00:17]} 30. Ne5 {[%clk 00:00:35]} {[%emt 00:00:13]} Nxe5 {[%clk 00:00:34]}
{[%emt 00:00:16]} 31. Bxe5+ {[%clk 00:00:42]} {[%emt 00:00:02]} Kb7 {[%clk
00:00:38]} {[%emt 00:00:06]} 32. Bxg7 {[%clk 00:00:40]} {[%emt 00:00:12]} Rf7
{[%clk 00:00:17]} {[%emt 00:00:32]} 33. Bd4 {[%clk 00:00:47]} {[%emt 00:00:02]}
Rdf8 {[%clk 00:00:20]} {[%emt 00:00:07]} 34. Ng4 {[%clk 00:00:44]} {[%emt
00:00:13]} Rf4 {[%clk 00:00:21]} {[%emt 00:00:09]} 35. Ne5 {[%clk 00:00:25]}
{[%emt 00:00:29]} Bf6 {[%clk 00:00:20]} {[%emt 00:00:11]} 36. Rxh6 {[%clk
00:00:22]} {[%emt 00:00:13]} Bf5 {[%clk 00:00:16]} {[%emt 00:00:14]} 37. Rxf6
{[%clk 00:00:17]} {[%emt 00:00:15]} e3 {[%clk 00:00:13]} {[%emt 00:00:13]} 38.
Rxf5 {[%clk 00:00:21]} {[%emt 00:00:06]} exf2+ {[%clk 00:00:20]} {[%emt
00:00:03]} 39. Bxf2 {[%clk 00:00:24]} {[%emt 00:00:07]} R8xf5 {[%clk 00:00:29]}
{[%emt 00:00:02]} 40. Nd3 {[%clk 00:00:27]} {[%emt 00:00:07]} Re4 {[%clk
00:00:20]} {[%emt 00:00:19]} 41. Qd2 {[%clk 00:00:33]} {[%emt 00:00:03]} Qc7
{[%clk 00:00:16]} {[%emt 00:00:15]} 42. Qh6 {[%clk 00:00:14]} {[%emt 00:00:28]}
Qf7 {[%clk 00:00:13]} {[%emt 00:00:13]} 43. Rc2 {[%clk 00:00:19]} {[%emt
00:00:05]} Rh5 {[%clk 00:00:20]} {[%emt 00:00:04]} 44. Qd6 {[%clk 00:00:17]}
{[%emt 00:00:12]} Re6 {[%clk 00:00:19]} {[%emt 00:00:11]} 45. Qd8 {[%clk
00:00:18]} {[%emt 00:00:09]} Rh1+ {[%clk 00:00:13]} {[%emt 00:00:15]} 46. Kd2
{[%clk 00:00:26]} {[%emt 00:00:01]} Rxe2+ {[%clk 00:00:12]} {[%emt 00:00:12]}
47. Kxe2 {[%clk 00:00:35]} {[%emt 00:00:02]} Qh5+ {[%clk 00:00:18]} {[%emt
00:00:04]} 48. Ke3 {[%clk 00:00:17]} {[%emt 00:00:28]} Qh6+ {[%clk 00:00:17]}
{[%emt 00:00:10]} 49. Ke2 {[%clk 00:00:18]} {[%emt 00:00:09]} Qh5+ {[%clk
00:00:26]} {[%emt 00:00:01]} 50. Ke3 {[%clk 00:00:26]} {[%emt 00:00:02]} Qh6+
{[%clk 00:00:36]} 51. Ke2 {[%clk 00:00:13]} {[%emt 00:00:24]} Qh5+ {[%clk
00:00:26]} {[%emt 00:00:08]} 1/2-1/2

[Event "British Rapidplay Championship 2023"]
[Site "Mercure Bradford, Bankfield Hotel"]
[Date "2023.04.16"]
[Round "10.11"]
[White "McCarthy, Damian M"]
[Black "Clark, Robert G"]
[Result "0-1"]
[TimeControl "15 minutes plus 10 seconds per move"]
[WhiteElo "1860"]
[BlackElo "2008"]

1. e4 {[%clk 00:15:18]} {[%emt 00:00:01]} e6 {[%clk 00:15:16]} {[%emt
00:00:05]} 2. d4 {[%clk 00:15:23]} {[%emt 00:00:05]} d5 {[%clk 00:15:24]}
{[%emt 00:00:02]} 3. Nc3 {[%clk 00:15:30]} {[%emt 00:00:03]} Bb4 {[%clk
00:15:31]} {[%emt 00:00:02]} 4. e5 {[%clk 00:15:36]} {[%emt 00:00:05]} Ne7
{[%clk 00:15:39]} {[%emt 00:00:02]} 5. a3 {[%clk 00:15:42]} {[%emt 00:00:03]}
Bxc3+ {[%clk 00:15:47]} {[%emt 00:00:02]} 6. bxc3 {[%clk 00:15:50]} {[%emt
00:00:02]} c5 {[%emt 00:00:10]} 7. Qg4 {[%clk 00:15:53]} Qc7 {[%clk 00:15:59]}
{[%emt 00:00:05]} 8. Qxg7 {[%clk 00:15:58]} {[%emt 00:00:06]} Rg8 {[%clk
00:16:07]} {[%emt 00:00:02]} 9. Qxh7 {[%clk 00:16:05]} {[%emt 00:00:02]} cxd4
{[%clk 00:16:14]} {[%emt 00:00:03]} 10. Ne2 {[%clk 00:16:12]} {[%emt 00:00:04]}
Nbc6 {[%clk 00:16:21]} {[%emt 00:00:03]} 11. f4 {[%clk 00:16:17]} {[%emt
00:00:05]} Bd7 {[%clk 00:16:19]} {[%emt 00:00:11]} 12. Qd3 {[%clk 00:16:21]}
{[%emt 00:00:07]} dxc3 {[%clk 00:16:26]} {[%emt 00:00:03]} 13. Qxc3 {[%clk
00:16:28]} {[%emt 00:00:03]} O-O-O {[%clk 00:16:06]} {[%emt 00:00:29]} 14. Rb1
{[%clk 00:16:26]} {[%emt 00:00:13]} Kb8 {[%clk 00:14:19]} {[%emt 00:01:56]} 15.
Rg1 {[%clk 00:15:28]} {[%emt 00:01:08]} Rc8 {[%clk 00:12:43]} {[%emt 00:01:46]}
16. g4 {[%clk 00:13:58]} {[%emt 00:01:41]} d4 {[%clk 00:11:02]} {[%emt
00:01:50]} 17. Qc5 {[%clk 00:12:15]} {[%emt 00:01:52]} Nd5 {[%clk 00:10:04]}
{[%emt 00:01:09]} 18. Rg3 {[%clk 00:11:48]} {[%emt 00:00:37]} Ka8 {[%clk
00:08:39]} {[%emt 00:01:36]} 19. Bg2 {[%clk 00:09:54]} {[%emt 00:02:04]} f6
{[%clk 00:06:28]} {[%emt 00:02:21]} 20. Bxd5 {[%clk 00:08:07]} {[%emt
00:01:58]} exd5 {[%clk 00:06:19]} {[%emt 00:00:18]} 21. Rgb3 {[%clk 00:06:27]}
{[%emt 00:01:50]} b6 {[%clk 00:03:31]} {[%emt 00:02:59]} 22. Qxd5 {[%clk
00:05:56]} {[%emt 00:00:40]} fxe5 {[%clk 00:02:55]} {[%emt 00:00:45]} 23. h3
{[%clk 00:05:23]} {[%emt 00:00:44]} Rge8 {[%clk 00:02:40]} {[%emt 00:00:25]} 24.
f5 {[%clk 00:05:01]} {[%emt 00:00:32]} Rcd8 {[%clk 00:01:45]} {[%emt 00:01:05]}
25. Qe4 {[%clk 00:03:42]} {[%emt 00:01:30]} Kb8 {[%clk 00:01:54]} {[%emt
00:00:01]} 26. Bg5 {[%clk 00:03:42]} {[%emt 00:00:09]} Rc8 {[%clk 00:01:40]}
{[%emt 00:00:24]} 27. Qd5 {[%clk 00:01:04]} {[%emt 00:02:48]} Nd8 {[%clk
00:01:25]} {[%emt 00:00:25]} 28. Bxd8 {[%clk 00:00:50]} {[%emt 00:00:25]} Rcxd8
{[%clk 00:01:29]} {[%emt 00:00:06]} 29. Qa5 {[%clk 00:00:43]} {[%emt 00:00:17]}
Kb7 {[%clk 00:00:44]} {[%emt 00:00:55]} 30. Nc1 {[%clk 00:00:16]} {[%emt
00:00:36]} Bc6 {[%clk 00:00:44]} {[%emt 00:00:09]} 31. Nd3 {[%clk 00:00:19]}
{[%emt 00:00:08]} Rd5 {[%clk 00:00:36]} {[%emt 00:00:18]} 32. Nc5+ {[%clk
00:00:20]} {[%emt 00:00:09]} Kc8 {[%clk 00:00:23]} {[%emt 00:00:22]} 33. Qa6+
{[%clk 00:00:24]} {[%emt 00:00:07]} Kd8 {[%clk 00:00:22]} {[%emt 00:00:11]} 34.
Ne6+ {[%clk 00:00:29]} {[%emt 00:00:05]} Rxe6 {[%clk 00:00:31]} {[%emt
00:00:02]} 35. fxe6 {[%clk 00:00:38]} e4 {[%clk 00:00:36]} {[%emt 00:00:05]} 36.
Qe2 {[%clk 00:00:25]} {[%emt 00:00:23]} e3 {[%clk 00:00:37]} {[%emt 00:00:09]}
37. Rd1 {[%clk 00:00:19]} {[%emt 00:00:17]} Qg3+ {[%clk 00:00:37]} {[%emt
00:00:09]} 38. Kf1 {[%clk 00:00:27]} Qxh3+ {[%clk 00:00:15]} {[%emt 00:00:32]}
39. Kg1 {[%clk 00:00:27]} {[%emt 00:00:12]} Rg5 {[%clk 00:00:14]} {[%emt
00:00:10]} 40. Rxd4+ {[%clk 00:00:34]} {[%emt 00:00:03]} Ke8 {[%clk 00:00:19]}
{[%emt 00:00:05]} 41. Rxe3 {[%clk 00:00:15]} {[%emt 00:00:29]} Qh1+ {[%clk
00:00:22]} {[%emt 00:00:07]} 42. Kf2 {[%clk 00:00:25]} {[%emt 00:00:01]} Qg2+
{[%clk 00:00:24]} {[%emt 00:00:07]} 43. Ke1 {[%clk 00:00:33]} {[%emt 00:00:02]}
Qg1+ {[%clk 00:00:22]} {[%emt 00:00:11]} 44. Kd2 {[%clk 00:00:40]} {[%emt
00:00:04]} Qa1 {[%clk 00:00:18]} {[%emt 00:00:14]} 45. e7 {[%clk 00:00:37]}
{[%emt 00:00:13]} Qxd4+ {[%clk 00:00:26]} {[%emt 00:00:02]} 46. Rd3 {[%clk
00:00:36]} {[%emt 00:00:12]} Qf4+ {[%clk 00:00:18]} {[%emt 00:00:17]} 47. Ke1
{[%clk 00:00:27]} {[%emt 00:00:19]} Re5 {[%clk 00:00:19]} {[%emt 00:00:09]} 0-1

[Event "British Rapidplay Championship 2023"]
[Site "Mercure Bradford, Bankfield Hotel"]
[Date "2023.04.16"]
[Round "10.12"]
[White "Ciuravin, Andrei"]
[Black "Mikalajunas, Kajus"]
[Result "0-1"]
[TimeControl "15 minutes plus 10 seconds per move"]
[WhiteElo "2185"]
[BlackElo "1778"]

1. d4 {[%clk 00:15:19]} {[%emt 00:00:01]} Nf6 {[%clk 00:15:18]} {[%emt
00:00:02]} 2. Bg5 {[%clk 00:15:26]} {[%emt 00:00:03]} c5 {[%clk 00:15:08]}
{[%emt 00:00:20]} 3. Bxf6 {[%clk 00:15:33]} {[%emt 00:00:03]} exf6 {[%clk
00:15:00]} {[%emt 00:00:18]} 4. d5 {[%clk 00:15:41]} {[%emt 00:00:02]} d6
{[%clk 00:15:05]} {[%emt 00:00:05]} 5. c4 {[%clk 00:15:46]} {[%emt 00:00:04]}
g6 {[%clk 00:15:12]} {[%emt 00:00:03]} 6. Nc3 {[%clk 00:15:54]} {[%emt
00:00:02]} Bg7 {[%clk 00:15:20]} {[%emt 00:00:03]} 7. e3 {[%clk 00:16:00]}
{[%emt 00:00:04]} O-O {[%clk 00:15:25]} {[%emt 00:00:05]} 8. Bd3 {[%clk
00:16:03]} {[%emt 00:00:07]} a6 {[%clk 00:15:15]} {[%emt 00:00:20]} 9. Nge2
{[%clk 00:16:09]} {[%emt 00:00:04]} Nd7 {[%clk 00:15:15]} {[%emt 00:00:10]} 10.
Ng3 {[%clk 00:16:00]} {[%emt 00:00:18]} Ne5 {[%clk 00:15:11]} {[%emt 00:00:14]}
11. Be2 {[%clk 00:16:08]} {[%emt 00:00:02]} f5 {[%clk 00:14:54]} {[%emt
00:00:27]} 12. O-O {[%clk 00:16:14]} {[%emt 00:00:04]} h5 {[%clk 00:14:55]}
{[%emt 00:00:09]} 13. Bd3 {[%clk 00:16:07]} {[%emt 00:00:17]} h4 {[%clk
00:14:07]} {[%emt 00:00:58]} 14. Nge2 {[%clk 00:16:16]} {[%emt 00:00:01]} Nxd3
{[%clk 00:13:06]} {[%emt 00:01:12]} 15. Qxd3 {[%clk 00:16:23]} {[%emt
00:00:02]} b5 {[%clk 00:12:59]} {[%emt 00:00:17]} 16. cxb5 {[%clk 00:15:09]}
{[%emt 00:01:24]} axb5 {[%clk 00:13:06]} {[%emt 00:00:02]} 17. Nxb5 {[%clk
00:15:08]} {[%emt 00:00:12]} Bxb2 {[%clk 00:12:35]} {[%emt 00:00:41]} 18. Rab1
{[%clk 00:15:14]} {[%emt 00:00:04]} Bg7 {[%clk 00:12:42]} {[%emt 00:00:03]} 19.
Nec3 {[%clk 00:15:22]} {[%emt 00:00:03]} Ba6 {[%clk 00:12:42]} {[%emt
00:00:10]} 20. a4 {[%clk 00:15:27]} {[%emt 00:00:05]} Bxb5 {[%clk 00:12:07]}
{[%emt 00:00:45]} 21. axb5 {[%clk 00:15:20]} {[%emt 00:00:18]} Ra3 {[%clk
00:12:11]} {[%emt 00:00:06]} 22. Rfc1 {[%clk 00:14:19]} {[%emt 00:01:11]} Qa5
{[%clk 00:12:11]} {[%emt 00:00:10]} 23. b6 {[%clk 00:14:28]} {[%emt 00:00:02]}
Rxc3 {[%clk 00:11:34]} {[%emt 00:00:47]} 24. Rxc3 {[%clk 00:14:36]} {[%emt
00:00:02]} Bxc3 {[%clk 00:11:05]} {[%emt 00:00:39]} 25. b7 {[%clk 00:14:44]}
{[%emt 00:00:02]} Bb4 {[%clk 00:11:02]} {[%emt 00:00:13]} 26. e4 {[%clk
00:14:48]} {[%emt 00:00:05]} fxe4 {[%clk 00:10:52]} {[%emt 00:00:20]} 27. Qxe4
{[%clk 00:14:57]} {[%emt 00:00:01]} Qc7 {[%clk 00:10:46]} {[%emt 00:00:17]} 28.
Qxh4 {[%clk 00:15:02]} {[%emt 00:00:05]} Qxb7 {[%clk 00:10:53]} {[%emt
00:00:02]} 29. Rb3 {[%clk 00:15:08]} {[%emt 00:00:05]} Qxd5 {[%clk 00:10:45]}
{[%emt 00:00:19]} 30. Rh3 {[%clk 00:15:16]} {[%emt 00:00:01]} Qd1# {[%clk
00:10:42]} {[%emt 00:00:02]} 0-1